Workbook

Sheet Рассчитанные
A1: Вид спорта | B1: Турнир | C1: 1 | D1: 2 | E1: Прогноз | F1: Ставка | G1: Коэф. | H1: Выплата | I1: Профит | L1: БК | M1: Количество | N1: Оборот | O1: Выплата | P1: Профит | Q1: РОИ
A2: Баскетбол | B2: ЧЕ | C2: Израиль | D2: Украина | E2: П2 с уч. ОТ | F2: 50 | G2: 3.4 | H2: =IF(J2="+",F2*G2,IF(J2=0,F2,0)) -> 170 | I2: =H2-F2 -> 120 | J2: + | K2: * | L2: MAR | M2: =COUNT(F2:F100000) -> 33 | N2: =SUM(F2:F2222) -> 1545 | O2: =SUM(H2:H2222) -> 1719.35 | P2: =SUM(I2:I2222) -> 174.35 | Q2: =P2/N2 -> 0.1128478964 | R2: Все ставки
A3: Баскетбол | B3: ЧЕ | C3: Франция | D3: Великобритания | E3: ТБ 145,5 | F3: 50 | G3: 1.97 | H3: 98.5 | I3: =H3-F3 -> 48.5 | J3: + | L3: MAR | M3: =COUNTIF(K:K,"*") -> 23 | N3: =SUMIF(K:K,"*",F:F) -> 1045 | O3: =SUMIF(K:K,"*",H:H) -> 1282.35 | P3: =SUMIF(K:K,"*",I:I) -> 237.35 | Q3: =P3/N3 -> 0.2271291866 | R3: Мое творчество
A4: Баскетбол | B4: ЧЕ | C4: Италия | D4: Турция | E4: 1(+5) | F4: 50 | G4: 1.97 | H4: 98.5 | I4: 48.5 | J4: + | L4: MAR | M4: =M2-M3 -> 10 | N4: =N2-N3 -> 500 | O4: 437 | P4: -63 | Q4: =P4/N4 -> -0.126 | R4: Плагиат
A5: Баскетбол | B5: ЧЕ | C5: Литва | D5: Македония | E5: 1(-8) | F5: 50 | G5: 1.97 | H5: =IF(J5="+",F5*G5,IF(J5=0,F5,0)) -> 50 | I5: 0 | J5: 0 | L5: MAR
A6: Баскетбол | B6: ЧЕ | C6: Германия | D6: Бельгия | E6: 1(-5) | F6: 50 | G6: 1.97 | H6: 0 | I6: =H6-F6 -> -50 | J6: - | L6: MAR
A7: Баскетбол | B7: ЧЕ | C7: Германия | D7: Украина | E7: П2 с уч. ОТ | F7: 50 | G7: 2.74 | H7: 137 | I7: 87 | J7: + | K7: * | L7: MAR
A8: Баскетбол | B8: ЧЕ | C8: Бельгия | D8: Великобритания | E8: 1(-5,5) | F8: 50 | G8: 1.97 | H8: 0 | I8: -50 | J8: - | K8: * | L8: MAR
A9: Баскетбол | B9: ЧЕ | C9: Франция | D9: Израиль | E9: 1(-13,5) | F9: 50 | G9: 1.97 | H9: 98.5 | I9: 48.5 | J9: + | K9: * | L9: MAR
A10: Баскетбол | B10: ЧЕ | C10: Черногория | D10: БиГ | E10: ТБ 152,5 | F10: 50 | G10: 1.97 | H10: 0 | I10: -50 | J10: - | K10: * | L10: MAR
A11: Баскетбол | B11: ЧЕ | C11: Франция | D11: Израиль | E11: Т1Б 79 | F11: 30 | G11: 1.9 | H11: 57 | I11: 27 | J11: + | K11: * | L11: MAR
A12: Футбол | B12: отбор к ЧМ | C12: Польша | D12: Черногория | E12: ТБ 2,5 | F12: 50 | G12: 2.3 | H12: 0 | I12: -50 | J12: - | K12: * | L12: MAR
A13: Баскетбол | B13: ЧЕ | C13: Литва | D13: Латвия | E13: Т2Б 71,5 | F13: 30 | G13: 1.9 | H13: 0 | I13: -30 | J13: - | K13: * | L13: MAR
A14: Футбол | B14: отбор к ЧМ | C14: Англия | D14: Молдова | E14: 2(+2,5) | F14: 30 | G14: 2.3 | H14: 0 | I14: -30 | J14: - | K14: * | L14: MAR
A15: Футбол | B15: отбор к ЧМ | C15: Англия | D15: Молдова | E15: Х | F15: 10 | G15: 14 | H15: 0 | I15: -10 | J15: - | K15: * | L15: MAR
A16: Баскетбол | B16: ЧЕ | C16: Черногория | D16: БиГ | E16: Б. Дубльевич Б 9,5 | F16: 50 | G16: 1.9 | H16: 95 | I16: 45 | J16: + | L16: MAR
A17: Футбол | B17: отбор к ЧМ | C17: Словения | D17: Албания | E17: Х2 | F17: 50 | G17: 2.1 | H17: 0 | I17: -50 | J17: - | K17: * | L17: PIN
A18: Баскетбол | B18: ЧЕ | C18: Испания | D18: Чехия | E18: Я. Веселы Б 12,5 | F18: 50 | G18: 2.13 | H18: =IF(J18="+",F18*G18,IF(J18=0,F18,0)) -> 0 | I18: =H18-F18 -> -50 | J18: - | L18: PIN
A19: Футбол | B19: отбор к ЧМ | C19: Украина | D19: Сан Марино | E19: 1(-5) | F19: 50 | G19: 1.9 | H19: 95 | I19: 45 | J19: + | K19: * | L19: BC
A20: Баскетбол | B20: ЧЕ | C20: Испания | D20: Чехия | E20: Я. Веселы Б 12,5 | F20: 50 | G20: 1.85 | H20: 0 | I20: -50 | J20: - | L20: BC
A21: Баскетбол | B21: ЧЕ | C21: Испания | D21: Словения | E21: 1(-7,5) | F21: 50 | G21: 1.91 | H21: 0 | I21: -50 | J21: - | L21: WH
A22: Баскетбол | B22: ЧЕ | C22: Финляндия | D22: Россия | E22: П. Коппонен Б 13,5 | F22: 50 | G22: 1.9 | H22: =IF(J22="+",F22*G22,IF(J22=0,F22,0)) -> 0 | I22: =H22-F22 -> -50 | J22: - | L22: MAR
A23: Баскетбол | B23: ЧЕ | C23: Германия | D23: Великобритания | E23: Э. Кларк Б 11,0 | F23: 50 | G23: 1.9 | H23: 95 | I23: 45 | J23: + | L23: MAR
A24: Баскетбол | B24: ЧЕ | C24: Украина | D24: Франция | E24: 1(+12,5) | F24: 50 | G24: 2.1 | H24: =IF(J24="+",F24*G24,IF(J24=0,F24,0)) -> 105 | I24: =H24-F24 -> 55 | J24: + | K24: * | L24: PIN
A25: Баскетбол | B25: ЧЕ | C25: Италия | D25: Швеция | E25: П2 с уч. ОТ | F25: 25 | G25: 4.4 | H25: 0 | I25: -25 | J25: - | K25: * | L25: MAR
A26: Баскетбол | B26: ЧЕ | C26: Италия | D26: Швеция | E26: 2(+8,5) | F26: 70 | G26: 2 | H26: 140 | I26: 70 | J26: + | K26: * | L26: MAR
A27: Баскетбол | B27: ЧЕ | C27: Россия | D27: Турция | E27: ТБ 148,5 | F27: 50 | G27: 1.952 | H27: 97.6 | I27: 47.6 | J27: + | K27: * | L27: MAR
A28: Баскетбол | B28: ЧЕ | C28: Франция | D28: Бельгия | E28: ТБ 141,5 | F28: 50 | G28: 1.97 | H28: 98.5 | I28: 48.5 | J28: + | K28: * | L28: MAR
A29: Баскетбол | B29: ЧЕ | C29: Сербия | D29: Черногория | E29: ТБ 144,5 | F29: 50 | G29: 1.97 | H29: 98.5 | I29: 48.5 | J29: + | K29: * | L29: MAR
A30: Баскетбол | B30: ЧЕ | C30: Словения | D30: Польша | E30: ТБ 141,5 | F30: 50 | G30: 1.96 | H30: 0 | I30: -50 | J30: - | K30: * | L30: MAR
A31: Баскетбол | B31: ЧЕ | C31: Сербия | D31: Черногория | E31: Н. Бьелица М 10,5 | F31: 50 | G31: 1.9 | H31: =IF(J31="+",F31*G31,IF(J31=0,F31,0)) -> 0 | I31: =H31-F31 -> -50 | J31: - | K31: * | L31: MAR
A32: Баскетбол | B32: ЧЕ | C32: Сербия | D32: Черногория | E32: Н. Недович М 10,5 | F32: 50 | G32: 1.85 | H32: 92.5 | I32: 42.5 | J32: + | K32: * | L32: BC
A33: Баскетбол | B33: ЧЕ | C33: Франция | D33: Бельгия | E33: Т. Паркер М 16,5 | F33: 50 | G33: 1.917 | H33: 0 | I33: -50 | J33: - | K33: * | L33: PIN
A34: Баскетбол | B34: ЧЕ | C34: Словения | D34: Польша | E34: Г. Драгич М 13,5 | F34: 50 | G34: 1.855 | H34: 92.75 | I34: 42.75 | J34: + | K34: * | L34: PIN
H35: 0 | I35: 0
H36: 0 | I36: 0
H37: 0 | I37: 0
H38: 0 | I38: 0
H39: 0 | I39: 0
H40: 0 | I40: 0
H41: 0 | I41: 0

Sheet Текущие
A1: Вид спорта | B1: Турнир | C1: 1 | D1: 2 | E1: Прогноз | F1: Ставка | G1: Коэф. | H1: БК
A2: Футбол | B2: УПЛ | C2: Карпаты | D2: Шахтер | E2: П1 | F2: 10 | G2: 14 | H2: MAR | Q2: mar | R2: 550
A3: Футбол | B3: УПЛ | C3: Арсенал | D3: Волынь | E3: П2 | F3: 394.5 | G3: 4.65 | H3: MAR | Q3: pin | R3: 200
A4: Футбол | B4: отбор к ЧМ | C4: Украина | D4: Англия | E4: П1 | F4: 95 | G4: 3 | H4: MAR | Q4: bc | R4: 150
Q5: wh | R5: 50
F6: =SUM(F2:F4) -> 499.5 | Q6: ub | R6: 50
R7: =SUM(R2:R6) -> 1000
